Cogmind - Beta 16.1 @@@ ROGUE MODE // 2026.02.17 @ 05:43:27 Player: deepledi Result: Destroyed by D-53 Grenadier with Mini Grenade Launcher Performance ------------- Evolutions (0) 0 Regions Visited (2) 400 Robots Destroyed (23) 115 Value Destroyed (607) 607 Prototype IDs (0) 0 Alien Tech Used (0) 0 Bonus (0) 0 TOTAL SCORE: 1122 Bonus ------- None Cogmind --------- Core Integrity 0/250 Matter 282/300 Energy 246/250 System Corruption 0% Temperature Cool (0) Movement Walking (190) Ox1 Location -10/Mines Parts ------- > --- POWER (1) -------- Ion Engine > --- PROPULSION (2) --- Aluminum Leg Aluminum Leg > --- UTILITY (2) ------ Large Storage Unit Core Shielding > --- WEAPON (2) ------- EM Pulse Gun Heavy Assault Rifle > --- INVENTORY (15) --- Ion Engine Light Nuclear Core Aluminum Leg Hover Unit Improved Heat Sink Medium Storage Unit High-capacity Battery (250) Visual Processing Unit Sensor Array Utility Shielding Grenade Launcher Flail Peak State ------------ > --- POWER ------------ Light Ion Engine > --- PROPULSION ------- Light Treads Compact Wheel > --- UTILITY ---------- Small Storage Unit Core Shielding > --- WEAPON ----------- Heavy Assault Rifle Heavy Assault Rifle > --- INVENTORY -------- Ion Engine Light Treads Compact Wheel EM Pulse Gun Heavy Assault Rifle Heavy Assault Rifle Grenade Launcher Flail [Rating: 10] Favorites ----------- Power Ion Engine Engine Ion Engine Propulsion Compact Wheel Treads Light Treads Leg Aluminum Leg Wheel Compact Wheel Utility Large Storage Unit Storage Large Storage Unit Protection Core Shielding Weapon Heavy Assault Rifle Energy Gun EM Pulse Gun Ballistic Gun Heavy Assault Rifle Impact Weapon Flail Build | -11 -10 -10 ------- Run | Yrd Mat Min Slots Evolved . | . . . Power . | . . . Propulsion . | . . . Utility . | . . . Weapon . | . . . Parts Attached 21 | 6 13 2 Power 4 | 1 3 . Engine 4 | 1 3 . Core . | . . . Reactor . | . . . Propulsion 6 | 2 2 2 Treads 2 | . 2 . Leg 2 | . . 2 Wheel 2 | 2 . . Hover . | . . . Flight . | . . . Utility 4 | 1 3 . Device . | . . . Storage 2 | 1 1 . Processor . | . . . Hackware . | . . . Protection 2 | . 2 . Artifact . | . . . Weapon 7 | 2 5 . Energy Gun 1 | 1 . . Energy Cannon . | . . . Ballistic Gun 5 | 1 4 . Ballistic Cannon . | . . . Launcher . | . . . Special Weapon . | . . . Impact Weapon 1 | . 1 . Slashing Weapon . | . . . Piercing Weapon . | . . . Special Melee Weapon . | . . . Unidentified Prototypes . | . . . Parts Lost 10 | . 9 1 Power 2 | . 2 . Propulsion 4 | . 3 1 Utility 1 | . 1 . Weapon 3 | . 3 . Highest Loss Streak 2 | . 2 1 To Critical Strikes . | . . . Average Backups 9 | 3 9 13 Power 1 | . 1 2 Propulsion 1 | 1 1 3 Utility 3 | . 3 6 Weapon 3 | . 3 2 Tool/Special . | . . . Unused Backups 13 | . 2 11 Power 2 | . . 2 Propulsion 2 | . . 2 Utility 7 | . 1 6 Weapon 2 | . 1 1 Tool/Special . | . . . Average Slot Usage (%) 93 | . 93 97 Engine 13 | . 13 14 Treads 5 | . 6 . Wheel 18 | . 18 14 Storage 14 | . 14 14 Protection 12 | . 12 14 Energy Gun 5 | . 4 14 Ballistic Gun 21 | . 22 14 Peak Build Rating 10 | 6 10 9 Average Rating 8 | 4 9 9 On Entrance 4 | . 6 8 Avg Prop Armor Cover (%) 10 | . 12 8 Naked Turns . | . . . Heaviest Build 34 | 12 34 31 Greatest Support 40 | 32 40 20 Greatest Overweight (x) 2 | . 2 1 Average Overweight (x) . | . . 1 Largest Inventory Capacity 15 | 8 15 15 Average Capacity 12 | 7 12 15 Most Carried 15 | 5 15 14 Average Carried 9 | 3 9 13 Final Capacity 15 | 8 15 15 Final Carried 15 | 4 15 12 Class Distribution -------------------- 100% | Mutant Dominant Class ---------------- Mutant | -10/Materials Mutant | -10/Mines Resources | -11 -10 -10 ----------- Run | Yrd Mat Min Matter Collected 885 | 260 595 30 Remotely . | . . . Salvage Created 855 | 70 755 30 Parts 44 | 2 41 1 Haulers Intercepted 1 | . 1 . Recyclers Shooed 1 | . 1 . Parts Field Recycled . | . . . Retrieved Matter . | . . . Parts Self-Destructed . | . . . Prevented . | . . . Parts Restored . | . . . Kills | -11 -10 -10 ------- Run | Yrd Mat Min Combat Hostiles Destroyed 17 | . 17 . Guns 17 | . 17 . Classes Destroyed 6 | 1 5 . Worker 2 | . 1 1 Hauler 1 | . 1 . Recycler 1 | 1 . . Watcher 2 | . 2 . Swarmer 3 | . 3 . Grunt 14 | . 14 . Best Kill Streak 7 | 1 7 1 Combat Bots Only 6 | . 6 . Max Kills in Single Turn 1 | 1 1 1 Gunslinging . | . . . Exploded . | . . . Melee . | . . . Uniques/NPCs Destroyed . | . . . Combat | -11 -10 -10 -------- Run | Yrd Mat Min Hostile Shots Fired 153 | . 150 3 Missed 35 | . 34 1 Hits 118 | . 116 2 Projectile 118 | . 116 2 AOE 3 | . . 3 Critical Strikes 3 | . 3 . Damage Taken 1459 | . 1318 141 Core 264 | . 201 63 Absorbed by Shields . | . . . Redirected to Shielding 31 | . 22 9 Core Remaining (%) 100 | 100 . . Volleys Fired 102 | 7 94 1 Largest 2 | 1 2 2 Hottest 63 | 40 63 63 Shots Fired 175 | 7 166 2 Gun 175 | 7 166 2 Cannon . | . . . Launcher . | . . . Special . | . . . Kinetic 151 | . 150 1 Thermal . | . . . Explosive . | . . . Electromagnetic 24 | 7 16 1 Robot Hit Streak 14 | 3 14 5 Robot Miss Streak 6 | 2 6 . Penetration Max . | . . . Secondary Targets 4 | . 4 . Max Gunslinging Chain 1 | . 1 . Shots Hit Robots 107 | 4 102 1 Core Hits 36 | 2 33 1 Critical Kills . | . . . Critical Parts Destroyed 1 | . 1 . Critical Strikes 1 | . 1 . Destroy 1 | . 1 . Melee Attacks 1 | . 1 . Impact 1 | . 1 . Slashing . | . . . Piercing . | . . . Sneak Attacks . | . . . Combat Hostiles . | . . . Follow-up Attacks . | . . . Damage Inflicted 1625 | 58 1555 12 Guns 1620 | 58 1550 12 Cannons . | . . . Explosions . | . . . Melee . | . . . Ramming 5 | . 5 . Kinetic 1413 | . 1413 . Thermal . | . . . Explosive . | . . . Electromagnetic 207 | 58 137 12 Impact . | . . . Slashing . | . . . Piercing . | . . . Highest Corruption . | . . . Average Corruption . | . . . Corruption Purged . | . . . Corruption Blocked . | . . . Overload Shots . | . . . Overflow Damage . | . . . Projectiles . | . . . Explosions . | . . . Melee . | . . . Knockbacks . | . . . Impact . | . . . Kinetic . | . . . Secondary . | . . . Self-Inflicted Damage . | . . . Shots . | . . . Rammed 1 | . 1 . Targets Rammed 1 | . 1 . Kicked . | . . . Crushed . | . . . Highest Temperature 96 | 20 96 3 Average Temperature 21 | 20 22 2 Received Heat Transfer 621 | . 621 . Siege Activations . | . . . Martial Activations . | . . . Shielding Activations . | . . . Robots Disrupted . | . . . Combat Hostiles . | . . . Robots Corrupted . | . . . Combat Hostiles . | . . . Parts Fried . | . . . Impact Corruptions . | . . . Robots Melted . | . . . Combat Hostiles . | . . . Parts Melted . | . . . Heat Transferred . | . . . Parts Sabotaged . | . . . Parts Stolen . | . . . Parts Stripped . | . . . Power Chain Reactions . | . . . Alert | -11 -10 -10 ------- Run | Yrd Mat Min Maximum Alert Level . | . . . Low Security (%) 100 | 100 100 100 Level 1 . | . . . Level 2 . | . . . Level 3 . | . . . Level 4 . | . . . Level 5 . | . . . High Security . | . . . Max Security . | . . . Peak Influence 177 | 5 177 46 Initial 36 | . . 36 Average 71 | . 79 36 Influence Increases 538 | 5 518 15 Destroy 0b10 Robot/C 340 | . 340 . Destroy 0b10 Robot/NC 30 | 5 20 5 Destroy Leader 76 | . 76 . Successful Hack 15 | . 5 10 Disable Machine 30 | . 30 . Destroy Structure 2 | . 2 . Lose Combat Pursuer 45 | . 45 . Influence Decreases 517 | 5 424 88 Entered New Map 58 | . . 58 Time Decay 359 | 5 334 20 Lost Part 100 | . 90 10 Squads Dispatched 3 | . 3 . Investigation 2 | . 2 . Extermination . | . . . Reinforcement 1 | . 1 . Assault . | . . . Garrison . | . . . Intercept . | . . . Searches Triggered . | . . . Construction Impeded . | . . . Haulers Reinforced . | . . . Active Scanning Responses . | . . . Cargo Convoy Interrupts . | . . . Stealth | -11 -10 -10 --------- Run | Yrd Mat Min Distress Signals 3 | . 3 . Communications Jammed . | . . . Distress Signals . | . . . Times Spotted 37 | . 27 10 Peak Tracking Total 10 | . 10 10 Tactical Retreats 4 | . 3 1 Traps | -11 -10 -10 ------- Run | Yrd Mat Min Traps Triggered 1 | . 1 . Indirectly . | . . . Trap Hack Attempts . | . . . Triggered . | . . . Disarmed . | . . . Reprogrammed . | . . . Reused . | . . . Traps Extracted . | . . . Installed . | . . . Triggered . | . . . Machines | -11 -10 -10 ---------- Run | Yrd Mat Min Machines Disabled 2 | . 2 . Max in Single Turn 1 | . 1 . Machines Repaired . | . . . Machines Dismantled . | . . . Machines Sabotaged . | . . . Overloaded Fab Kills . | . . . Hacking | -11 -10 -10 --------- Run | Yrd Mat Min Machines Accessed 2 | . 1 1 Terminals 2 | . 1 1 Fabricators . | . . . Repair Stations . | . . . Recycling Units . | . . . Scanalyzers . | . . . Garrison Access . | . . . Total Hacks 9 | . 4 5 Successful 4 | . 2 2 Failed 5 | . 2 3 Catastrophic 1 | . 1 . Database Lockouts . | . . . Manual 7 | . 3 4 Terminals 9 | . 4 5 Fabricators . | . . . Repair Stations . | . . . Recycling Units . | . . . Scanalyzers . | . . . Garrison Access . | . . . Terminal Hacks 2 | . 1 1 Emergency Access Points 1 | . 1 . Zone Layout 1 | . . 1 Fabricator Hacks . | . . . Repair Station Hacks . | . . . Recycling Unit Hacks . | . . . Scanalyzer . | . . . Garrison Access Hacks . | . . . Unauthorized Hacks 2 | . 1 1 Terminals 2 | . 1 1 Botnet 2 | . 1 1 Fabricators . | . . . Repair Stations . | . . . Recycling Units . | . . . Scanalyzers . | . . . Garrison Access . | . . . Data Cores Recovered . | . . . Used . | . . . Hacking Detections 2 | . 1 1 Full Trace Events . | . . . Feedback Events . | . . . Feedback Blocked . | . . . Robot Schematics Acquired . | . . . Robots Built . | . . . Authchips . | . . . Time . | . . . Total Robot Build Rating . | . . . Part Schematics Acquired . | . . . Parts Built . | . . . Authchips . | . . . Time . | . . . Total Part Build Rating . | . . . Part Studies Acquired . | . . . Parts Repaired . | . . . Time . | . . . Parts Recycled . | . . . Recycled Matter . | . . . Retrieved Matter . | . . . Retrieved Components . | . . . Parts Scanalyzed . | . . . Part Schematics Acquired . | . . . Parts Damaged . | . . . Bothacking | -11 -10 -10 ------------ Run | Yrd Mat Min Used RIF Installer . | . . . Robots Hacked . | . . . Non-combat . | . . . Combat . | . . . Robot Hacks Applied . | . . . Relay Couplers Released . | . . . Fabnet Peak Effective % . | . . . Robots Rewired . | . . . Allies Hacked . | . . . Hacks Repelled . | . . . Allies | -11 -10 -10 -------- Run | Yrd Mat Min Total Allies . | . . . Largest Group . | . . . Highest-Rated Group . | . . . Highest-Rated Ally . | . . . Total Orders . | . . . Ally Attacks . | . . . Total Damage . | . . . Kills . | . . . Allies Corrupted . | . . . Allies Melted . | . . . Intel | -11 -10 -10 ------- Run | Yrd Mat Min Active Infowar (turns) . | . . . Robot Analysis Total . | . . . Derelict Logs Recovered . | . . . Drone Launches . | . . . Drone Recoveries . | . . . Exploration | -11 -10 -10 ------------- Run | Yrd Mat Min Turns Passed 1098 | 76 967 55 Spaces Moved 550 | 54 458 38 Core 14 | 14 . . Treads 44 | . 44 . Legs 1 | . . 1 Wheels 491 | 40 414 37 Hover . | . . . Flight . | . . . Fastest Speed 50 | 50 100 115 Average Speed 111 | 87 114 116 Slowest Speed 190 | 100 160 190 Overloaded Moves . | . . . Propulsion Burnouts . | . . . Robots Hopped . | . . . Potential Cave-ins . | . . . Cave-ins Triggered . | . . . Exploration Rate (%) 23 | 4 53 13 Regions Visited 2 Branch Regions 1 Pre-discovered Areas . | . . . Known Exits Taken . | . . . Unknown Exits Taken 2 | 1 1 . Scrap Searched . | . . . Spaces Dug . | . . . Terrain Destroyed . | . . . Melee . | . . . Projectile . | . . . AOE . | . . . Terrain Rammed . | . . . Walls Destroyed . | . . . Machines Disabled . | . . . Actions | -11 -10 -10 --------- Run | Yrd Mat Min Total 853 | 76 731 46 Wait 137 | . 135 2 Move 548 | 53 457 38 Hop . | . . . Pick Up 28 | 10 18 . Fast Attach 3 | . 3 . Attach 15 | 6 6 3 Detach 1 | . 1 . Swap 12 | . 10 2 Drop 5 | . 5 . Fire 102 | 7 94 1 Melee 1 | . 1 . Ram . | . . . Kick . | . . . Crush 1 | . 1 . Escape Stasis . | . . . Rewire . | . . . Trap . | . . . Miscellaneous . | . . . Route ------- -11/Scrapyard -10/Materials (discovered 2 exits: [*Mat] / *Min) -10/Mines History --------- Turn | Location | Event 19 | -11/Scrapyard | Discovered new exit (range 15) 77 | -11/Scrapyard | Entered Materials 314 | -10/Materials | Build established: Mutant 419 | -10/Materials | Discovered new exit (range 15) 514 | -10/Materials | Discovered new exit (range 8) 777 | -10/Materials | Derelicts attacked the area 883 | -10/Materials | Core integrity fell below 50% 994 | -10/Materials | Core integrity fell below 20% 1044 | -10/Materials | Entered Mines 1060 | -10/Mines | Assembled infested the area 1099 | -10/Mines | Destroyed by D-53 Grenadier with Mini Grenade Launcher Last Messages --------------- Terminal linked with 0 systems. Awaiting botnet instructions. >>Layout(Zone) Retrieving Zone 4K layout... Downloaded map data. 01060_ ALERT: Infestation in the mines, dispatching Demolisher response squad. 01075_ K-01 Serf collects debris. 01083_ K-01 Serf destroyed. 01086_ Acquired 30 matter. 01089_ as-07250 sneak attacks. 01089_ K-01 Serf system corrupted by crushing effect. 01091_ C-45 Heavy ARC bursts open, deploying its payload. 01091_ D-53 Grenadier unfolds itself. 01091_ as-14827 destroyed. 01094_ as-23265 destroyed. 01094_ as-43535 destroyed. 01094_ K-01 Serf destroyed. 01096_ as-07250 destroyed. 01097_ Com. Wheel destroyed. Map ----- +----------------------------------------------------+ | ???????????## ##????????????????????????????????? | | ?????????### ##?????????????????????????????????? | | ?????????# ##????????#########????????????????? | | ????????? #????????# #????????????????? | | ????????? #???????## #????????????????? | | ????????? ##???????#T #????????????????? | | ????????? #####????## #????????????????? | | ????????? ##????# #????????????????? | | ????????? #????# #????????????????? | | ????????? #????### #####????????????????? | | ????????? ##??????# #?????????##?????????? | | ????????? ##??????## #????????## ?????????? | | ????????? ####???????# #????????# ?????????? | | ?????????# ##???????#### ######???## ?????????? | | ?????????# ##????????# a #????##?????????? | | ?????????# #????????## ## #?????#?????????? | | ?????????# #????????# ## ######## #???? | | ?????????# ###??????? ## ? | | ?????????# ##?????## ########### ? | | ?????????# ##?#### #??????????????????? | | ?????????## ### #??????????????????? | | ???????????? #???????????????????? | | ??????????? ### d #???????????????????? | | ?????????? ????## #????????????????????? | | ?????????????????# #????????????????????? | | ?????????????????# d @ #????????????????????? | | ?????????????????## #????????????????????? | | ??????????????????#%# ###????????????????????? | | ??????????????????#"### #??????????????????????? | | ??????????????????#???## ##??????????????????????? | | ???????????????????????# ????????????????????????? | | ???????????????????????# ????????????????????????? | | ???????????????????????# ????????????????????????? | | ???????????????????????# ????????????????????????? | | ???????????????????????##????????????????????????? | | ?????????????????????????????????????????????????? | | ?????????????????????????????????????????????????? | | ?????????????????????????????????????????????????? | | ?????????????????????????????????????????????????? | | ?????????????????????????????????????????????????? | | ?????????????????????????????????????????????????? | | ?????????????????????????????????????????????????? | | ?????????????????????????????????????????????????? | | ?????????????????????????????????????????????????? | | ?????????????????????????????????????????????????? | | ?????????????????????????????????????????????????? | | ?????????????????????????????????????????????????? | | ?????????????????????????????????????????????????? | | ?????????????????????????????????????????????????? | | ?????????????????????????????????????????????????? | +----------------------------------------------------+ Best States ------------- Heat Dissipation 25 Energy Generation 10 Energy Capacity 250 Matter Stores 300 Matter Capacity 300 Sight Range 16 Terrain Scan Density 10 Armor Coverage 150 Core Shielding 20 Evasion (%) 40 Recoil Reduction 2 Item Schematics ----------------- None Robot Schematics ------------------ None Fabricated ------------ Nothing Repaired ---------- Nothing Studied --------- None Alien Tech Used ----------------- None Achievements -------------- None Challenges ------------ None Game ------ Seed SkeletonShieldMindspike Manual? 0 Play Time 00:11:29 Cumulative 99.8 hours Start 2026.02.17 @ 05:32:56 End 2026.02.17 @ 05:43:27 Sessions 1 Manual Loads 0 Difficulty Rogue Special Mode None Game No. 115 Rogue 114 Adventurer 1 Explorer 0 Win Type - Total 0 Types 0/0/0/0/0/0/0/0/0/0 Lore% 28 Gallery% 43 Achievement% 33 Wizard Run 0 Options --------- Layout 0 ASCII 0 Keyboard 0 Movement Numpad Keybinds 0 Fullscreen 2 Font 18/SmallcapsGlow Map View 76x50 Zoom Use 0% Tactical HUD 1 Map Filters NONE Filters NONE Steam 1 RUN: 8376fbca-946f-4d31-a5b1-26cdf6a11e12